bitfinex/quotes_SOLUSD_20241121
["timestamp","ask_amount","ask_price","bid_price","bid_amount"]
[1732159674321,0.5,235.57,235.35,91.81629081]
[1732159674523,0.5,235.57,235.36,21.78526684]
[1732159674742,0.5,235.57,235.39,70.0]
[1732159674951,0.5,235.54,235.39,70.0]
[1732159675247,0.5,235.54,235.37,21.7631361]
[1732159675542,0.5,235.58,235.37,21.7631361]
[1732159675721,6.611,235.59,235.41,21.90121798]
[1732159676420,6.611,235.59,235.44,21.41363933]
[1732159676617,0.5,235.7,235.51,70.0]
[1732159676942,0.5,235.68,235.51,91.02291079]
[1732159677149,0.5,235.71,235.51,70.0]
[1732159677325,0.5,235.68,235.49,21.1024906]
[1732159677535,0.5,235.7,235.51,70.0]
[1732159677834,0.5,235.68,235.51,70.0]
[1732159678423,1.0,235.73,235.51,70.0]
[1732159678651,0.5,235.68,235.51,70.0]
[1732159679355,0.5,235.71,235.52,20.0]
[1732159679529,0.5,235.69,235.52,20.0]
[1732159679725,14.02176372,235.71,235.52,20.0]
[1732159679953,6.642,235.71,235.52,20.0]
[1732159680142,7.142,235.71,235.52,20.0]
[1732159680329,13.83343424,235.71,235.52,20.0]
[1732159680760,0.5,235.68,235.48,91.70602349]
[1732159680956,0.5,235.68,235.49,20.0]
[1732159681429,0.5,235.7,235.51,70.0]
[1732159682348,6.69143424,235.71,235.51,70.0]
[1732159682553,17.1526,235.72,235.53,70.0]
[1732159682870,16.1526,235.72,235.53,91.46120709]
[1732159683455,22.98954792,235.72,235.53,91.46120709]
[1732159683946,6.83694792,235.72,235.56,70.0]
[1732159684258,0.5,235.76,235.56,70.0]
[1732159684632,0.5,235.75,235.56,70.0]
[1732159684836,0.5,235.76,235.56,70.0]
[1732159685042,6.2294,235.77,235.62,70.0]
[1732159685357,12.93202541,235.77,235.62,70.0]
[1732159685953,12.93202541,235.77,235.59,91.03284152]
[1732159686145,12.93202541,235.77,235.63,70.0]
[1732159686658,0.5,235.76,235.58,20.0]
[1732159686868,0.5,235.74,235.57,91.92520184]
[1732159687048,0.5,235.76,235.57,91.92520184]
[1732159688441,12.93202541,235.77,235.61,21.00856451]
[1732159688945,12.93202541,235.77,235.52,22.894]
[1732159688946,12.93202541,235.77,235.63,91.99079066]
[1732159689262,27.84928442,235.83,235.66,76.6609]
[1732159689465,28.34928442,235.83,235.67,20.0]
[1732159689769,34.75002526,235.83,235.67,70.0]
[1732159690061,6.3674,235.83,235.67,70.0]
[1732159690648,7.3674,235.83,235.67,20.0]
[1732159691066,0.5,235.78,235.61,70.0]
[1732159691268,0.5,235.73,235.57,12.71]
[1732159691565,1.0,235.75,235.55,21.30532455]
[1732159691763,1.0,235.77,235.57,91.92520184]
[1732159691941,0.5,235.79,235.61,21.00856451]
[1732159692138,1.0,235.81,235.63,91.99079066]
[1732159692447,6.8674,235.83,235.65,12.71]
[1732159692665,6.3674,235.83,235.69,82.71]
[1732159693173,6.3674,235.83,235.66,70.0]
[1732159693368,6.3674,235.83,235.67,20.0]
[1732159693676,6.84204271,235.84,235.72,70.0]
[1732159693838,6.1949,235.9,235.72,70.0]
[1732159693839,21.4664585,235.89,235.72,70.0]
[1732159694341,21.45442563,235.91,235.74,82.71]
[1732159694751,21.45442563,235.91,235.74,70.0]
[1732159695146,21.57977345,235.87,235.72,20.0]
[1732159695577,7.22464646,235.91,235.72,20.0]
[1732159695578,21.73310203,235.9,235.74,70.0]
[1732159695749,21.45442563,235.91,235.72,20.0]
[1732159695948,21.4664585,235.89,235.72,20.0]
[1732159696168,21.57977345,235.87,235.72,20.0]
[1732159696368,21.45442563,235.91,235.72,20.0]
[1732159696543,21.45442563,235.91,235.77,70.0]
[1732159697466,21.45442563,235.91,235.74,12.71]
[1732159697467,0.5,235.91,235.74,70.0]
[1732159697675,22.7274668,235.92,235.74,70.0]
[1732159698075,22.7274668,235.92,235.74,82.71]
[1732159698273,0.5,235.91,235.74,70.0]
[1732159698583,0.5,235.91,235.75,20.0]
[1732159699078,6.7913668,235.92,235.78,211.50970383]
[1732159699379,21.44681065,236.04,235.88,20.0]
[1732159699549,6.0433,236.1,235.88,20.0]
[1732159699550,21.52952079,236.02,235.89,39.56446955]
[1732159699750,21.52952079,236.02,235.9,70.0]
[1732159699959,21.52952079,236.02,235.91,11.8262078]
[1732159700164,21.96018915,235.98,235.92,10.57374231]
[1732159700493,21.82809845,236.12,235.96,148.39592888]
[1732159700671,6.5433,236.16,235.97,11.20339778]
[1732159700988,0.5,236.14,235.97,6.95760739]
[1732159701282,0.5,236.13,235.94,27.58096434]
[1732159701492,6.0433,236.16,235.98,26.75684007]
[1732159701672,6.0433,236.16,235.99,10.53870794]
[1732159701991,6.0433,236.16,235.99,9.06490794]
[1732159702161,0.5,236.13,235.98,2.91824854]
[1732159702359,0.5,236.13,235.96,5.30634825]
[1732159702360,1.0,236.13,235.96,5.30634825]
[1732159702665,1.0,236.13,235.92,174.93239821]
[1732159702666,0.5,236.11,235.92,174.93239821]
[1732159702864,1.374153,236.13,235.92,185.04750146]
[1732159703083,0.374153,236.13,235.93,26.04983946]
[1732159703258,0.374153,236.13,235.99,21.40092833]
[1732159703463,0.374153,236.13,235.99,9.73186699]
[1732159703734,0.374153,236.13,235.99,8.17936699]
[1732159704085,0.374153,236.13,236.0,20.0]
[1732159704086,8.77949558,236.13,236.0,20.0]
[1732159704387,0.374153,236.13,236.0,20.0]
[1732159704586,0.374153,236.13,235.98,20.0]
[1732159704963,0.374153,236.13,235.97,37.52734588]
[1732159704964,0.374153,236.13,236.02,20.0]
[1732159705160,0.374153,236.13,236.04,21.53098196]
[1732159705368,0.374153,236.13,236.05,14.09097277]
[1732159705581,0.374153,236.13,236.06,41.3300264]
[1732159705785,0.374153,236.13,236.07,4.81098699]
[1732159706495,0.374153,236.13,236.06,46.1387814]
[1732159706496,0.374153,236.13,236.06,20.0]
[1732159706697,0.374153,236.13,236.07,4.808755]
[1732159707178,0.374153,236.13,235.98,21.10156375]
[1732159707372,0.374153,236.13,235.97,22.9078]
[1732159707678,0.374153,236.13,235.97,43.91854588]
[1732159708573,0.374153,236.13,235.99,20.0]
[1732159708786,0.374153,236.13,236.01,41.36132396]
[1732159709190,0.374153,236.13,236.01,116.17007896]
[1732159709371,0.374153,236.13,236.02,26.52051121]
[1732159709982,0.374153,236.13,236.03,41.43856177]
[1732159710370,0.374153,236.13,236.04,21.53098196]
[1732159710991,0.02073327,236.13,236.04,26.33973696]
[1732159711575,0.02073327,236.13,236.05,20.0]
[1732159711775,0.02073327,236.13,236.05,41.51622485]
[1732159711974,0.02073327,236.13,236.05,20.0]
[1732159712667,0.02073327,236.13,236.04,26.33973696]
[1732159712871,20.5,236.11,235.84,115.12756222]
[1732159713170,0.5,236.01,235.82,21.01944187]
[1732159713370,0.5,236.01,235.81,4.81098699]
[1732159713371,0.5,236.0,235.78,26.11009563]
[1732159713590,0.5,235.98,235.82,21.01944187]
[1732159713898,0.5,236.0,235.82,25.83042886]
[1732159714096,0.5,236.01,235.83,4.81098699]
[1732159714475,0.5,235.99,235.83,4.81098699]
[1732159714797,1.0,236.01,235.83,4.81098699]
[1732159714982,1.0,236.01,235.83,26.45678987]
[1732159715490,0.94090169,236.03,235.84,21.64817048]
[1732159715697,0.94090169,236.03,235.86,21.28706098]
[1732159716001,0.94090169,236.03,235.87,31.27459921]
[1732159716183,0.94090169,236.03,235.88,21.6373318]
[1732159717280,16.0224,236.12,235.82,74.47123078]
[1732159717281,23.776884,236.11,235.9,21.51857013]
[1732159717479,23.776884,236.11,235.89,26.8027307]
[1732159717713,23.776884,236.11,235.88,21.6373318]
[1732159717890,23.776884,236.11,235.9,21.51857013]
[1732159718280,23.776884,236.11,235.9,26.32955712]
[1732159718477,10.4096,236.11,235.91,21.09133692]
[1732159718790,10.4096,236.11,235.94,21.34553541]
[1732159719105,10.4096,236.11,235.96,21.25177139]
[1732159719407,10.4096,236.11,235.98,21.10156375]
[1732159719580,10.4096,236.17,235.98,21.10156375]
[1732159719777,10.4096,236.17,235.98,91.10156375]
[1732159720103,24.9449,236.19,236.01,91.36132396]
[1732159720277,0.48609667,236.23,236.05,21.51622485]
[1732159721109,0.48609667,236.23,236.04,91.53098196]
[1732159721280,24.43099667,236.26,236.04,21.53098196]
[1732159721898,23.776884,236.25,236.04,21.53098196]
[1732159722677,24.43099667,236.26,236.04,21.53098196]
[1732159722877,24.37099667,236.26,236.04,21.53098196]
[1732159723079,10.232,236.25,236.03,31.86196177]
[1732159723901,10.232,236.25,236.04,21.53098196]
[1732159724204,10.232,236.25,236.04,26.34196895]
[1732159724406,10.232,236.25,236.06,21.3300264]
[1732159724585,10.232,236.25,236.08,21.14489899]
[1732159724788,10.232,236.25,236.09,21.6589273]
[1732159726512,10.232,236.25,236.11,21.13694939]
[1732159726716,24.37099667,236.26,236.11,21.13694939]
[1732159727208,24.37099667,236.26,236.07,21.06370293]
[1732159727413,24.37099667,236.26,236.07,26.21420656]
[1732159727581,24.37099667,236.26,236.09,21.6589273]
[1732159727782,24.37099667,236.26,236.11,21.13694939]
[1732159728099,24.37099667,236.26,236.13,21.44305104]
[1732159728491,24.37099667,236.26,236.14,21.74373465]
[1732159728696,0.79327848,236.52,236.13,9.98907221]
[1732159728697,25.8936,236.33,236.13,9.98907221]
[1732159729013,25.8936,236.33,236.04,31.52005417]
[1732159729216,25.8936,236.33,236.04,101.52005417]
[1732159729410,23.776884,236.32,236.04,101.52005417]
[1732159729712,3.6366,236.31,236.08,21.14489899]
[1732159730024,3.6366,236.31,236.1,91.84848587]
[1732159730190,3.6366,236.31,236.12,21.05220856]
[1732159730383,3.6366,236.31,236.13,21.44305104]
[1732159730588,3.6366,236.31,236.12,26.20271219]
[1732159731008,3.6366,236.31,236.13,21.44305104]
[1732159732015,3.6366,236.31,236.09,21.6589273]
[1732159732191,3.6366,236.31,236.11,21.13694939]
[1732159733090,3.6366,236.31,236.11,26.28745302]
[1732159733314,3.6366,236.31,236.13,21.44305104]
[1732159733746,3.6366,236.31,236.13,26.59355467]
[1732159734221,3.6366,236.31,236.14,31.73280686]
[1732159734512,25.8936,236.33,236.16,21.02034543]
[1732159734694,25.8936,236.33,236.18,21.08234421]
[1732159735286,25.8936,236.33,236.1,21.84848587]
[1732159735492,25.8936,236.33,236.1,26.9989895]
[1732159735798,25.8936,236.33,236.12,21.05220856]
[1732159736303,23.776884,236.32,236.12,21.05220856]
[1732159736615,4.3455,236.32,236.11,5.15050363]
[1732159736816,24.3455,236.32,236.11,5.15050363]
[1732159737199,24.3455,236.32,236.11,9.98907221]
[1732159737514,4.3455,236.32,236.13,21.44305104]
[1732159737721,4.3455,236.32,236.15,21.90725617]
[1732159737931,4.3455,236.32,236.16,26.17084906]
[1732159738100,4.3455,236.32,236.16,31.00941764]
[1732159738820,4.3455,236.32,236.17,21.06075491]
[1732159739016,4.3455,236.32,236.19,21.9501657]
[1732159739695,4.3455,236.38,236.19,27.10066933]
[1732159739901,4.8108634,236.46,236.21,21.72514222]
[1732159740205,4.8108634,236.46,236.29,91.41315633]
[1732159740419,4.8108634,236.46,236.3,32.77525168]
[1732159741599,4.8108634,236.46,236.3,26.85587754]
[1732159741798,4.8108634,236.46,236.28,21.71804207]
[1732159742415,4.70248493,236.46,236.26,21.04135819]
[1732159742718,4.70248493,236.46,236.29,21.41315633]
[1732159742927,4.70248493,236.46,236.28,27.90817732]
[1732159743130,4.70248493,236.46,236.28,6.19013525]
[1732159743327,4.70248493,236.46,236.27,4.39159596]
[1732159743624,4.70248493,236.46,236.23,11.60475554]
[1732159743829,4.70248493,236.46,236.23,15.9963515]
[1732159744126,4.70248493,236.46,236.24,26.16273233]
[1732159744305,4.70248493,236.46,236.25,11.60475554]
[1732159744704,4.70248493,236.46,236.26,25.43295415]
[1732159744921,4.70248493,236.46,236.27,6.19013525]
[1732159745219,82.87895172,236.45,236.26,4.39159596]
[1732159745524,59.10206772,236.45,236.21,27.91527747]
[1732159745721,63.69176772,236.45,236.22,4.39159596]
[1732159745925,20.5,236.42,236.22,4.39159596]
[1732159746128,20.0,236.4,236.22,4.39159596]
[1732159746310,20.0,236.4,236.2,5.41462029]
[1732159746311,23.776884,236.37,236.14,26.13533061]
[1732159746512,20.0,236.36,236.15,6.19013525]
[1732159746810,20.0,236.34,236.15,11.60475554]
[1732159747221,28.9352,236.35,236.16,5.41462029]
[1732159747408,28.9352,236.35,236.17,6.19013525]
[1732159747725,28.9352,236.35,236.18,9.80621625]
[1732159747929,28.9352,236.35,236.19,6.19013525]
[1732159748129,28.9352,236.35,236.2,9.80621625]
[1732159748314,28.9352,236.35,236.21,6.19013525]
[1732159748514,28.9352,236.35,236.22,5.41462029]
[1732159748714,28.9352,236.35,236.23,6.19013525]
[1732159749135,28.9352,236.35,236.23,11.60475554]
[1732159749430,28.9352,236.35,236.24,5.41462029]
[1732159749601,28.9352,236.35,236.25,6.19013525]
[1732159750003,30.293,236.41,236.21,21.72514222]
[1732159750202,30.293,236.41,236.26,5.41462029]
[1732159750429,30.293,236.41,236.27,32.38463016]
[1732159750801,30.293,236.41,236.28,5.41462029]
[1732159751018,30.293,236.41,236.29,10.58173121]
[1732159751327,30.293,236.41,236.3,5.41462029]
[1732159751532,30.293,236.41,236.21,21.72514222]
[1732159751834,30.293,236.41,236.24,21.77113637]
[1732159752006,30.293,236.41,236.25,37.84637187]
[1732159752804,0.35698493,236.46,236.26,21.04135819]
[1732159753019,0.35698493,236.46,236.28,21.71804207]
[1732159753228,0.35698493,236.46,236.29,37.40950783]
[1732159754528,0.35698493,236.46,236.29,15.9963515]
[1732159755039,0.35698493,236.46,236.29,37.40950783]
[1732159756731,0.35698493,236.46,236.29,15.9963515]
[1732159757324,0.35698493,236.46,236.22,21.43973481]
[1732159757325,24.8423995,236.46,236.24,4.39159596]
[1732159757810,0.5,236.45,236.24,10.58173121]
[1732159758013,53.92831457,236.42,236.24,10.58173121]
[1732159758219,23.98541457,236.4,236.24,6.19013525]
[1732159758425,23.98541457,236.38,236.18,4.39159596]
[1732159758632,39.02955521,236.38,236.18,4.39159596]
[1732159759203,0.5,236.36,236.18,4.39159596]
[1732159759436,25.5974,236.35,236.12,26.90078107]
[1732159759613,25.5974,236.35,236.13,10.24016847]
[1732159760336,25.5974,236.35,236.14,21.74373465]
[1732159760531,25.5974,236.35,236.14,9.50732361]
[1732159760532,0.5,236.34,236.14,9.50732361]
[1732159760742,0.5,236.34,236.15,5.84857251]
[1732159761029,25.5974,236.35,236.16,5.11572765]
[1732159761206,0.5,236.32,236.16,15.35589612]
[1732159761403,23.776884,236.3,236.1,10.24016847]
[1732159761625,39.82314902,236.32,236.1,15.35589612]
[1732159761827,39.82304835,236.34,236.11,5.11572765]
[1732159762031,25.5974,236.35,236.12,31.29237703]
[1732159762243,25.5974,236.35,236.13,26.55877869]
[1732159762414,25.5974,236.35,236.14,10.24016847]
[1732159762738,25.5974,236.35,236.15,5.11572765]
[1732159762940,25.5974,236.35,236.16,24.39159596]
[1732159763238,25.5974,236.35,236.17,21.06075491]
[1732159763406,25.5974,236.35,236.19,21.9501657]
[1732159763612,25.5974,236.35,236.2,4.39159596]
[1732159766812,25.5974,236.35,236.2,10.24016847]
[1732159767741,0.5,236.33,236.15,5.84857251]
[1732159767940,1.29344936,236.33,236.15,5.84857251]
[1732159768117,0.5,236.3,236.15,5.84857251]
[1732159768327,24.276884,236.32,236.15,5.84857251]
[1732159768630,0.5,236.3,236.15,5.84857251]
[1732159769011,5.2691,236.27,236.05,21.51622485]
[1732159769208,6.06279549,236.27,236.08,5.84857251]
[1732159769407,25.5974,236.25,236.08,5.84857251]
[1732159769629,26.3911745,236.25,236.08,5.84857251]
[1732159770232,25.5974,236.25,236.08,32.10919915]
[1732159770427,25.5974,236.25,236.09,5.11572765]
[1732159770633,25.5974,236.25,236.1,5.84857251]
[1732159771013,26.39109578,236.25,236.1,5.84857251]
[1732159771215,0.5,236.22,236.08,4.39159596]
[1732159771517,0.5,236.19,236.04,5.84857251]
[1732159772038,1.29396376,236.19,236.04,5.84857251]
[1732159773037,0.5,236.19,236.04,5.84857251]
[1732159773541,1.29396543,236.19,236.04,5.84857251]
[1732159774232,1.29396543,236.19,236.01,9.50732361]
[1732159774233,5.2691,236.16,236.01,9.50732361]
[1732159774749,5.2691,236.16,236.02,10.96430016]
[1732159776725,26.87733865,236.15,236.02,10.96430016]
[1732159777042,0.5,236.14,235.95,9.50732361]
[1732159777244,0.79420342,236.13,235.97,5.84857251]
[1732159777419,0.5,236.09,235.95,9.50732361]
[1732159777614,1.29432151,236.11,235.95,5.11572765]
[1732159777840,0.5,236.09,235.95,5.11572765]
[1732159778149,1.29432151,236.11,235.95,5.11572765]
[1732159778150,0.5,236.1,235.95,5.11572765]
[1732159778644,1.29428918,236.1,235.95,5.11572765]
[1732159779329,26.5833,236.15,235.96,5.52480192]
[1732159779330,0.7942805,236.11,235.96,5.52480192]
[1732159779516,1.29421556,236.13,235.97,5.11572765]
[1732159779715,1.79421556,236.13,235.97,15.03212553]
[1732159779951,1.29421556,236.13,235.97,15.03212553]
[1732159780353,1.29421556,236.13,235.98,9.91639788]
[1732159780645,1.29421556,236.13,235.98,15.03212553]
[1732159781333,0.68578088,236.13,235.98,15.03212553]
[1732159781527,0.79417847,236.14,235.98,15.03212553]
[1732159781844,0.79417847,236.14,235.99,5.11572765]
[1732159782032,26.0833,236.15,235.99,5.11572765]
[1732159782033,26.87747909,236.15,236.0,9.91639788]
[1732159782232,26.87747909,236.15,236.01,5.11572765]
[1732159782547,26.87747909,236.15,236.02,5.52480192]
[1732159782924,26.87747909,236.15,236.02,10.64052957]
[1732159783124,26.0833,236.15,236.02,10.64052957]
[1732159783428,31.5641,236.24,236.03,39.94331165]
[1732159783623,31.5641,236.24,236.04,5.83076653]
[1732159783845,0.79377785,236.23,236.05,33.54966318]
[1732159784041,0.79377785,236.23,236.06,5.83080068]
[1732159784344,0.79377785,236.23,236.06,15.60357986]
[1732159785351,0.5,236.22,236.06,4.39159596]
[1732159785556,0.79401788,236.21,236.01,23.776884]
[1732159785737,0.79401788,236.21,236.01,33.54966318]
[1732159785938,0.79401788,236.21,236.01,9.77277918]
[1732159786147,0.5,236.2,236.01,9.77277918]
[1732159786444,0.7940199,236.19,236.01,9.77277918]
[1732159786750,0.5,236.18,236.01,9.77277918]
[1732159787045,31.5641,236.15,236.01,4.39159596]
[1732159787250,31.5641,236.15,235.92,11.0507]
[1732159787251,1.29416921,236.14,235.96,5.38118322]
[1732159787834,0.79416921,236.14,235.96,5.38118322]
[1732159788347,31.5641,236.15,235.97,4.69863007]
[1732159788665,31.5641,236.15,235.98,5.38118322]
[1732159788957,31.5641,236.15,235.99,10.22307846]
[1732159789138,31.5641,236.15,236.0,5.38118322]
[1732159789363,5.2691,236.21,236.05,23.776884]
[1732159789529,5.2691,236.21,236.07,23.776884]
[1732159789849,5.2691,236.21,236.08,10.22206854]
[1732159790048,5.2691,236.21,236.08,9.91639788]
[1732159790652,5.2691,236.21,236.09,0.30597296]
[1732159790847,5.2691,236.21,236.1,5.52480192]
[1732159791044,26.295,236.24,236.11,0.30563505]
[1732159791351,26.295,236.24,236.11,5.52480192]
[1732159791557,26.295,236.24,236.1,15.60341996]
[1732159791755,26.295,236.24,236.11,5.52480192]
[1732159792053,26.295,236.24,236.11,5.38118322]
[1732159792541,26.295,236.24,236.11,10.90598514]
[1732159793535,26.295,236.24,236.12,5.83065611]
[1732159793772,26.295,236.24,236.12,11.21183933]
[1732159793953,5.2691,236.27,236.13,5.38118322]
[1732159794274,25.2791,236.29,236.14,4.69708636]
[1732159794559,25.2791,236.29,236.15,5.38118322]
[1732159794859,5.2691,236.33,236.17,21.06075491]
[1732159795061,5.2691,236.33,236.18,39.37916542]
[1732159795234,0.79333051,236.44,236.22,0.5]
[1732159795235,5.2879,236.42,236.22,0.5]
[1732159795554,5.2879,236.42,236.25,45.62690437]
[1732159795734,5.2879,236.42,236.26,10.22061266]
[1732159795933,5.2879,236.42,236.27,23.776884]
[1732159796140,5.2879,236.42,236.28,5.82893224]
[1732159796360,25.2791,236.43,236.28,15.60171142]
[1732159797244,0.35698493,236.46,236.31,23.776884]
[1732159797446,0.35698493,236.46,236.33,23.776884]
[1732159797747,0.35698493,236.46,236.34,0.3034586]
[1732159798461,0.35698493,236.46,236.31,4.39159596]
[1732159798653,0.35698493,236.46,236.3,10.9327]
[1732159798851,0.35698493,236.46,236.29,5.38118322]
[1732159799038,0.35698493,236.46,236.3,5.38118322]
[1732159799234,0.35698493,236.46,236.31,24.0808124]
[1732159799440,0.35698493,236.46,236.31,34.98679754]
[1732159799642,0.35698493,236.46,236.31,11.20991354]
[1732159800160,0.35698493,236.46,236.28,5.38118322]
[1732159800340,0.35698493,236.46,236.25,4.89159596]
[1732159800341,0.5,236.44,236.25,4.39159596]
[1732159800555,0.79319135,236.43,236.25,0.80433014]
[1732159800736,1.15006262,236.46,236.27,0.5]
[1732159800940,0.35698493,236.46,236.29,0.5]
[1732159801298,0.35698493,236.46,236.32,27.1318]
[1732159801562,0.35698493,236.46,236.32,27.43552369]
[1732159801933,0.35698493,236.46,236.32,38.34150883]
[1732159802676,0.35698493,236.46,236.33,23.776884]
[1732159802839,0.35698493,236.46,236.34,0.30348422]
[1732159803242,0.35698493,236.46,236.35,23.776884]
[1732159803561,0.35698493,236.46,236.38,0.5]
[1732159803870,1.0,236.55,236.39,34.98581936]
[1732159804866,1.0,236.55,236.4,0.5]
[1732159805043,1.0,236.55,236.42,24.276884]
[1732159805246,1.0,236.55,236.43,0.30259577]
[1732159805463,1.0,236.55,236.4,23.776884]
[1732159805657,1.0,236.55,236.39,9.77277918]
[1732159805961,1.0,236.55,236.36,23.776884]
[1732159806145,1.0,236.55,236.35,20.80314601]
[1732159806340,1.0,236.55,236.35,0.80314601]
[1732159806540,38.99055751,236.53,236.34,4.39159596]
[1732159806744,38.99055751,236.49,236.32,27.1318]
[1732159806951,38.99055751,236.53,236.32,27.6318]
[1732159807156,39.78347786,236.52,236.32,33.01298322]
[1732159807472,1.7929361,236.55,236.34,0.5]
[1732159807675,1.7929361,236.55,236.35,0.30326242]
[1732159807852,1.7929361,236.55,236.35,5.68444564]
[1732159808165,1.0,236.55,236.4,0.5]
[1732159808352,1.0,236.55,236.41,0.30269924]
[1732159808551,1.0,236.55,236.41,24.07958324]
[1732159809265,1.0,236.55,236.45,23.776884]
[1732159809844,1.0,236.55,236.44,27.6777]
[1732159810261,1.0,236.55,236.45,24.07969061]
[1732159810464,1.0,236.55,236.49,0.5]
[1732159810643,1.0,236.55,236.5,24.07898932]
[1732159810848,1.0,236.55,236.5,29.46017254]
[1732159811064,1.0,236.55,236.51,23.776884]
[1732159811278,1.0,236.55,236.5,5.38118322]
[1732159811463,1.0,236.55,236.51,23.776884]
[1732159811643,1.0,236.55,236.51,24.07898656]
[1732159812253,1.0,236.55,236.46,4.89159596]
[1732159812449,1.0,236.55,236.47,23.776884]
[1732159813053,1.0,236.55,236.48,0.5]
[1732159813361,1.0,236.55,236.47,23.776884]
[1732159813672,1.0,236.55,236.44,27.6777]
[1732159814144,1.0,236.55,236.43,10.8782]
[1732159815154,1.0,236.55,236.44,0.30313742]
[1732159815470,1.0,236.55,236.44,5.38118322]
[1732159815955,1.0,236.55,236.41,5.52480192]
[1732159816150,1.0,236.55,236.39,0.30315463]
[1732159816368,1.0,236.55,236.37,11.0644]
[1732159816560,0.79279658,236.54,236.37,11.0644]
[1732159817071,38.99055751,236.51,236.32,26.8488]
[1732159817248,0.79296373,236.5,236.32,26.8488]
[1732159817448,38.99055751,236.48,236.31,10.9025]
[1732159817682,0.7930631,236.47,236.31,10.9025]
[1732159817847,25.2371,236.5,236.35,0.5]
[1732159818055,25.2371,236.5,236.36,11.20937069]
[1732159818269,0.7928246,236.53,236.36,11.20937069]
[1732159818470,0.7928246,236.53,236.36,11.70937069]
[1732159818673,0.7928246,236.53,236.37,23.776884]
[1732159818862,1.0,236.55,236.38,0.30328764]
[1732159818863,1.79279943,236.55,236.38,0.30328764]
[1732159819066,1.79279943,236.55,236.39,23.776884]
[1732159819768,1.79279943,236.55,236.38,0.30328764]
[1732159819976,40.78335694,236.55,236.37,23.776884]
[1732159820176,40.78335694,236.55,236.21,82.71]
[1732159820177,38.99055751,236.53,236.38,0.30340948]
[1732159820480,39.49055751,236.47,236.27,0.5]
[1732159820684,38.99055751,236.45,236.26,10.9025]
[1732159820866,26.03031151,236.44,236.26,11.4025]
[1732159821178,26.03031151,236.44,236.26,10.9025]
[1732159821179,5.2879,236.42,236.26,10.9025]
[1732159821477,0.79331649,236.41,236.26,11.4025]
[1732159821775,0.79319104,236.41,236.26,10.9025]
[1732159822083,38.99055751,236.4,236.26,10.9025]
[1732159822268,38.99055751,236.4,236.24,0.5]
[1732159822269,0.79327106,236.39,236.24,0.5]
[1732159822470,0.79327106,236.39,236.21,10.9025]
[1732159822657,0.79327106,236.39,236.22,5.37169081]
[1732159822864,0.79327106,236.39,236.21,10.9025]
[1732159823180,38.99055751,236.32,236.15,0.5]
[1732159823372,38.99055751,236.36,236.14,0.30515845]
[1732159823559,38.99055751,236.36,236.13,25.5099]
[1732159823560,38.99055751,236.29,236.13,25.5099]
[1732159823762,0.79373541,236.28,236.13,25.5099]
[1732159824184,0.79363902,236.3,236.13,25.5099]
[1732159824366,38.99055751,236.37,236.18,0.5]
[1732159824566,0.7934456,236.36,236.2,0.5]
[1732159824956,0.7934456,236.36,236.18,0.5]
[1732159825157,0.7934456,236.36,236.16,0.5]
[1732159825586,38.99055751,236.35,236.16,23.776884]
[1732159825764,0.79350635,236.34,236.17,0.30516803]
[1732159825962,38.99055751,236.33,236.13,25.5099]
[1732159826155,0.79363484,236.32,236.13,25.5099]
[1732159826480,38.99055751,236.29,236.13,25.5099]
[1732159826686,0.79372214,236.28,236.13,25.5099]
[1732159826985,38.99055751,236.25,236.05,25.6322]
[1732159827176,38.99055751,236.23,236.05,36.0559]
[1732159827378,0.79394456,236.22,236.06,0.5]
[1732159827581,0.79385614,236.24,236.08,0.5]
[1732159827759,0.79385614,236.24,236.07,5.37169081]
[1732159827969,0.79385614,236.24,236.06,0.5]
[1732159828581,39.78442556,236.29,236.09,0.5]
[1732159828785,39.78442556,236.29,236.1,0.30571812]
[1732159828992,38.99055751,236.23,236.06,24.276884]
[1732159829282,38.99055751,236.28,236.09,0.5]
[1732159829459,38.99055751,236.26,236.07,24.276884]
[1732159829665,0.79383044,236.25,236.08,0.30603013]